[Event "6th Tulsi Lal Memorial NTCC 2080"]
[Site "Lalitpur"]
[Date "2024.01.11"]
[Round "6.2"]
[White "Dahal, Sushrut"]
[Black "Das, Singhesor"]
[Result "1-0"]
[ECO "D00"]
[WhiteElo "1895"]
[BlackElo "1873"]
[Annotator "NA COMBH"]
[PlyCount "99"]
[EventDate "2024.01.03"]
[EventType "team-tourn"]
[EventCountry "NEP"]
[SourceTitle "playchess.com"]
[Source "ChessBase"]
[SourceQuality "1"]
[TimeControl "5400+30"]

1. d4 {[%emt 0:03:25]} d5 {[%emt 0:01:00]} 2. Nc3 {[%emt 0:00:03]} Nf6 {[%emt 0:01:32]} 3. Bf4 {[%emt 0:00:07]} a6 {[%emt 0:01:01]} 4. e3 {[%emt 0:00:11]} e6 {[%emt 0:01:27]} 5. g4 {[%emt 0:08:02]} c5 {[%emt 0:04:26]} 6. g5 {[%emt 0:01:15]} cxd4 {[%emt 0:05:02]} 7. exd4 {[%emt 0:05:34]} Nfd7 {[%emt 0:00:53]} 8. a3 {[%emt 0:03:22]} Nb6 {[%emt 0:01:28]} 9. Nf3 {[%emt 0:03:22]} Bd6 {[%emt 0:01:02]} 10. Qd2 {[%emt 0:00:59]} Qc7 {[%emt 0:00:44]} 11. Bxd6 {[%emt 0:00:51]} Qxd6 {[%emt 0:00:18]} 12. Ne5 {[%emt 0:00:28]} Nc6 {[%emt 0:01:02]} 13. f4 {[%emt 0:04:22]} Bd7 {[%emt 0:05:11]} 14. Rg1 {[%emt 0:12:26]} (14. O-O-O $16) 14... Qc7 {[%emt 0:06:56]} 15. Nxc6 {[%emt 0:09:39]} Qxc6 {[%emt 0:01:24]} 16. Bd3 {[%emt 0:02:25]} Nc4 {[%emt 0:07:22]} 17. Bxc4 {[%emt 0:03:11]} Qxc4 {[%emt 0:02:04]} 18. O-O-O {[%emt 0:02:15]} O-O-O {[%emt 0:01:19]} 19. Rg3 {[%emt 0:03:31]} Kb8 {[%emt 0:00:42]} 20. Kb1 {[%emt 0:05:43]} Qc7 {[%emt 0:02:20]} 21. Qe3 {[%emt 0:03:38]} g6 {[%emt 0:03:20]} 22. Rd2 {[%emt 0:03:42]} b5 {[%emt 0:06:16]} 23. Na2 {[%emt 0:01:49]} a5 {[%emt 0:00:45]} 24. Nc1 {[%emt 0:04:00]} Kb7 {[%emt 0:14:48]} 25. Nd3 {[%emt 0:01:29]} Kb6 {[%emt 0:00:25]} 26. Ne5 {[%emt 0:01:38]} Be8 {[%emt 0:01:18]} 27. Qb3 {[%emt 0:01:08]} a4 {[%emt 0:02:04]} 28. Qb4 {[%emt 0:02:08]} Qd6 {[%emt 0:00:27]} 29. Qxd6+ {[%emt 0:00:36]} Rxd6 {[%emt 0:28:24]} 30. Rh3 {[%emt 0:14:11]} Kc7 {[%emt 0:00:00]} 31. Rdd3 {[%emt 0:00:00]} Kb7 {[%emt 0:00:00]} 32. Rh6 {[%emt 0:00:00]} Kb6 {[%emt 0:00:00]} 33. c3 {[%emt 0:00:00]} Rf8 {[%emt 0:00:00]} 34. Ng4 {[%emt 0:00:00]} b4 {[%emt 0:00:00]} 35. cxb4 {[%emt 0:00:00]} Bb5 {[%emt 0:00:00]} 36. Rc3 {[%emt 0:00:00]} f5 {[%emt 0:00:00]} 37. Ne5 {[%emt 0:00:00]} Rdd8 {[%emt 0:00:00]} 38. Rxh7 {[%emt 0:00:00]} Rh8 {[%emt 0:00:00]} 39. Rh6 {[%emt 0:00:00]} Rhg8 {[%emt 0:02:51]} 40. Nxg6 {[%emt 0:00:00]} Rc8 {[%emt 0:00:37]} 41. Ne5 {[%emt 0:00:00]} Rge8 {[%emt 0:00:46]} 42. Rxe6+ {[%emt 0:00:00]} Rxe6 {[%emt 0:00:32]} 43. Rxc8 {[%emt 0:00:00]} Kb7 {[%emt 0:00:53]} 44. Rc3 {[%emt 0:00:24]} Be8 {[%emt 0:00:17]} 45. h4 {[%emt 0:00:50]} Bh5 {[%emt 0:00:46]} 46. Kc1 $18 {[%emt 0:00:27]} Re8 {[%emt 0:00:20]} 47. g6 {[%emt 0:00:18]} Rg8 {[%emt 0:01:05]} 48. Rg3 {[%emt 0:00:16]} Rc8+ {[%emt 0:00:36]} 49. Kd2 {[%emt 0:00:02]} Rg8 {[%emt 0:00:37]} 50. Rg5 {[%emt 0:00:06]} 1-0

[Event "6th Tulsi Lal Memorial NTCC 2080"]
[Site "Lalitpur"]
[Date "2024.01.11"]
[Round "6.4"]
[White "Lohani, Sujana"]
[Black "Gautam, Anushna"]
[Result "0-1"]
[ECO "E18"]
[WhiteElo "1756"]
[BlackElo "1400"]
[Annotator "NA COMBH"]
[PlyCount "122"]
[EventDate "2024.01.03"]
[EventType "team-tourn"]
[EventCountry "NEP"]
[SourceTitle "playchess.com"]
[Source "ChessBase"]
[SourceQuality "1"]
[TimeControl "5400+30"]

1. d4 {[%emt 1:31:00]} Nf6 {[%emt 1:31:00]} 2. Nf3 {[%emt 0:00:30]} e6 {[%emt 0:00:00]} 3. g3 {[%emt 0:00:00]} b6 {[%emt 0:00:00]} 4. Bg2 {[%emt 0:00:00]} Bb7 {[%emt 0:00:00]} 5. O-O {[%emt 0:00:00]} Be7 {[%emt 0:00:00]} 6. c4 {[%emt 0:00:00]} O-O {[%emt 0:00:00]} 7. Nc3 {[%emt 0:00:00]} d5 {[%emt 0:00:00]} 8. cxd5 {[%emt 0:00:00]} exd5 {[%emt 0:00:00]} 9. Bf4 {[%emt 0:00:00]} c6 {[%emt 0:00:00]} 10. Rc1 {[%emt 0:00:00]} Re8 {[%emt 0:00:00]} 11. Qc2 {[%emt 0:00:00]} Na6 {[%emt 0:00:00]} 12. Rfd1 {[%emt 0:00:00]} Nc7 {[%emt 0:00:00]} 13. Bxc7 {[%emt 0:00:00]} Qxc7 {[%emt 0:00:00]} 14. Ne5 {[%emt 0:00:00]} c5 {[%emt 0:00:00]} 15. e3 {[%emt 0:00:00]} Rad8 {[%emt 0:00:00]} 16. Qf5 {[%emt 0:00:00]} a6 {[%emt 0:00:00]} 17. h4 {[%emt 0:00:00]} Bd6 {[%emt 0:00:00]} 18. Ng4 Nxg4 {[%emt 0:00:00]} 19. Qxg4 {[%emt 0:00:00]} Bf8 {[%emt 0:00:00]} 20. dxc5 {[%emt 0:00:00]} Bxc5 {[%emt 0:00:00]} 21. Bxd5 {[%emt 0:00:00]} Rxe3 {[%emt 0:00:00]} 22. Kh2 {[%emt 0:00:00]} Ree8 {[%emt 0:00:00]} 23. Qf3 {[%emt 0:00:00]} Bxd5 {[%emt 0:00:00]} 24. Nxd5 {[%emt 0:00:00]} Qd6 {[%emt 0:00:00]} 25. Kg2 {[%emt 0:00:00]} h6 {[%emt 0:00:00]} 26. Rc3 {[%emt 0:01:45]} Qe5 {[%emt 0:00:00]} 27. Rcd3 {[%emt 0:00:55]} Rb8 {[%emt 0:00:00]} 28. R1d2 {[%emt 0:01:24]} a5 {[%emt 0:00:00]} 29. Nc3 {[%emt 0:02:59]} Rbc8 {[%emt 0:01:30]} 30. Rd7 {[%emt 0:00:25]} Qe6 {[%emt 0:02:31]} 31. a3 {[%emt 0:00:59]} Re7 {[%emt 0:03:51]} 32. Qb7 {[%emt 0:00:40]} Qc6+ {[%emt 0:00:39]} 33. Qxc6 {[%emt 0:00:35]} Rxc6 {[%emt 0:00:09]} 34. Rd8+ {[%emt 0:01:05]} Kh7 {[%emt 0:00:12]} 35. Nd5 {[%emt 0:01:05]} Ree6 {[%emt 0:01:40]} 36. Rd7 {[%emt 0:00:21]} f6 {[%emt 0:00:52]} 37. h5 {[%emt 0:01:34]} Rcd6 {[%emt 0:00:29]} 38. Nf4 {[%emt 0:00:10]} Rxd2 {[%emt 0:00:57]} 39. Rxd2 {[%emt 0:00:25]} Rd6 {[%emt 0:00:21]} 40. Re2 {[%emt 0:00:08]} Kg8 {[%emt 0:00:22]} 41. Ng6 {[%emt 0:01:06]} Rd5 {[%emt 0:00:49]} 42. g4 {[%emt 0:01:05]} Rg5 {[%emt 0:00:49]} 43. Kh3 {[%emt 0:01:04]} f5 {[%emt 0:00:34]} 44. f3 {[%emt 0:00:08]} fxg4+ {[%emt 0:00:12]} 45. fxg4 {[%emt 0:00:08]} Rd5 {[%emt 0:00:05]} 46. Nf4 {[%emt 0:00:40]} Rd4 {[%emt 0:00:23]} 47. Ne6 {[%emt 0:02:26]} Rd3+ {[%emt 0:00:15]} 48. Kg2 {[%emt 0:00:16]} Bd6 {[%emt 0:00:16]} 49. Re4 {[%emt 0:00:43]} Rd2+ {[%emt 0:00:19]} 50. Kf3 {[%emt 0:00:08]} Rxb2 {[%emt 0:00:06]} 51. Nd4 {[%emt 0:01:02]} Bxa3 {[%emt 0:00:29]} 52. Kf4 {[%emt 0:00:59]} Bc5 {[%emt 0:01:03]} 53. Ne6 {[%emt 0:00:17]} Rb4 {[%emt 0:00:13]} 54. Rxb4 {[%emt 0:00:51]} Bxb4 {[%emt 0:00:06]} 55. Ke4 {[%emt 0:00:12]} a4 {[%emt 0:00:11]} 56. Kd3 {[%emt 0:00:17]} a3 {[%emt 0:00:09]} 57. Kc2 {[%emt 0:00:09]} Kf7 {[%emt 0:00:18]} 58. Nf4 {[%emt 0:00:16]} Bc5 {[%emt 0:00:31]} 59. Nd3 {[%emt 0:00:50]} Kf6 {[%emt 0:00:15]} 60. Kb3 {[%emt 0:00:15]} Kg5 {[%emt 0:00:15]} 61. Ne5 {[%emt 0:00:20]} Kf4 {[%emt 0:00:13]} 0-1

[Event "6th Tulsi Lal Memorial NTCC 2080"]
[Site "Lalitpur"]
[Date "2024.01.11"]
[Round "6.5"]
[White "Bhandari, Kshitiz"]
[Black "Subedi, Rajan"]
[Result "1/2-1/2"]
[ECO "A30"]
[WhiteElo "2061"]
[BlackElo "1809"]
[Annotator "TA"]
[PlyCount "119"]
[EventDate "2024.01.03"]
[EventType "team-tourn"]
[EventCountry "NEP"]
[SourceTitle "playchess.com"]
[Source "ChessBase"]
[SourceQuality "1"]
[TimeControl "5400+30"]

{[%evp 13,119,9,4,9,52,52,48,51,83,53,56,60,82,96,84,44,76,49,95,91,110,47,187,159,158,113,207,208,310,0,0,0,0,0,0,0,23,0,10,14,21,12,32,-3,58,56,172,177,270,268,249,200,316,285,291,288,289,283,400,385,435,414,401,377,412,439,391,167,161,174,171,121,140,148,142,158,301,302,273,252,455,55,186,56,60,68,69,22,22,22,26,42,62,62,62,0,0,0,0,0,0,0,0,0,0,0,0,0]} 1. c4 {[%emt 0:08:41]} Nf6 {[%emt 0:00:06]} 2. Nc3 {[%emt 0:00:08]} c5 {[%emt 0:00:57]} 3. Nf3 {[%emt 0:00:10]} b6 {[%emt 0:00:10]} 4. g3 {[%emt 0:03:04]} Bb7 {[%emt 0:00:06]} 5. Bg2 {[%emt 0:00:03]} g6 {[%emt 0:00:52]} 6. O-O {[%emt 0:00:06]} Bg7 {[%emt 0:00:04]} 7. Re1 {[%emt 0:00:21]} O-O {[%emt 0:00:12]} 8. e4 {[%emt 0:00:06] A30: Symmetrical English: Double Fianchetto and Hedgehog.} d6 {[%emt 0:00:28]} 9. d4 {[%emt 0:00:10]} cxd4 {[%emt 0:00:16]} 10. Nxd4 {[%emt 0:00:02] White is slightly better.} Nbd7 {[%emt 0:00:49][%cal Of6g4,Bb8d7,Bd7c5,Bc5a4][%mdl 32]} 11. b3 {[%emt 0:01:11]} Rc8 {[%emt 0:01:16]} 12. Bb2 {[%emt 0:00:08] [#]} Qc7 $146 {[%emt 0:01:11]} ({Predecessor:} 12... a6 13. Qd2 Rc7 14. h3 Qa8 15. Nd5 Nxd5 16. exd5 Nc5 17. Rad1 e5 18. Nc6 b5 {1-0 Ly,M (2480)-Willemze,T (2418) Amsterdam Batavia Grolsch blitz 8th 2016 (7)}) 13. Nd5 {[%emt 0:01:05]} Qd8 {[%emt 0:00:32]} 14. Qd2 {[%emt 0:00:40] White has more active pieces.} Nc5 {[%emt 0:05:35]} 15. Rad1 {[%emt 0:05:03]} Nfd7 {[%emt 0:05:15]} (15... a6 $14) 16. f4 {[%emt 0:01:24]} Re8 {[%emt 0:03:41]} (16... e6 $2 17. Nc3 $18) 17. Bh3 {[%emt 0:03:58]} (17. Ba1 $16) 17... Rb8 {[%emt 0:01:17]} (17... e6 18. Nc3 Nf6 19. Bg2 $16) (17... a6 $1 $14) 18. b4 {[%emt 0:00:45]} Na4 {[%emt 0:15:22]} 19. Ba1 {[%emt 0:00:35]} a6 {[%emt 0:00:19]} (19... e6 $16) 20. e5 $18 {[%emt 0:01:51]} dxe5 {[%emt 0:02:18]} (20... e6 $142) 21. Nb3 $2 {[%emt 0:32:34]} (21. fxe5 $18 {e6 is the strong threat.} Nxe5 22. Rxe5 Bxe5 23. Nc6 Bxc6 24. Bxe5 Bxd5 25. Qh6) 21... e6 $11 {[%emt 0:04:06]} 22. Nc3 {[%emt 0:02:53]} Nxc3 {[%emt 0:04:08]} 23. Bxc3 {[%emt 0:00:14]} Bc6 24. Bg2 $36 {[%emt 0:08:21][%mdl 2048] White fights for an advantage.} Bxg2 {[%emt 0:11:42]} (24... e4 $5 {[%cal Rg7c3]}) 25. Kxg2 {[%emt 0:00:20]} Rb7 {[%emt 0:01:39]} 26. Bxe5 {[%emt 0:02:27]} Bxe5 {[%emt 0:01:07]} 27. fxe5 {[%emt 0:00:02]} (27. Rxe5 Qc7 28. Ree1 Qxc4 $17) 27... Qc7 {[%emt 0:00:18][%csl LRc4,LRe5]} 28. Qd4 {[%emt 0:00:05]} Rc8 {[%emt 0:00:13]} ({Better is} 28... Qc6+ $11 29. Kg1 Qa4) 29. Nd2 $14 {[%emt 0:06:00]} h5 {[%emt 0:00:53] [#]} ({Black should play} 29... Kg7 $14) 30. Ne4 $1 $18 {[%emt 0:06:11]} Qc6 {[%emt 0:12:36]} (30... Qxe5 $2 31. Qxe5 Nxe5 32. Nd6 $18) (30... Qxc4 $142 31. Qxc4 Rxc4) 31. Kh3 {[%emt 0:03:07]} Nf8 {[%emt 0:03:00]} 32. Nd6 {[%emt 0:03:25]} Rd7 {[%emt 0:05:45]} (32... Rd8 $142 33. Qf4 Rbd7) 33. Nxc8 {[%emt 0:00:52]} Qxc8 {[%emt 0:00:02]} 34. Qf4 {[%emt 0:01:37]} (34. Qxb6 Rxd1 35. Rxd1 Qxc4 $16) 34... Nh7 {[%emt 0:04:20]} 35. Kg2 {[%emt 0:01:29]} Kg7 {[%emt 0:00:21]} (35... g5 $142 36. Qe4 g4) 36. Rd6 {[%emt 0:01:39]} Rc7 {[%emt 0:01:19]} 37. Rf1 {[%emt 0:00:43]} (37. Rxb6 Rxc4 38. Qe3 Rc3 $11) 37... g5 {[%emt 0:01:33]} 38. Qf3 {[%emt 0:00:47]} g4 {[%emt 0:00:15]} 39. Qf4 {[%emt 0:00:07]} a5 {[%emt 0:00:27]} 40. bxa5 {[%emt 0:00:12]} (40. Rxb6 Qa8+ 41. Kg1 axb4 $18) (40. b5 $142) 40... Qa8+ {[%emt 0:00:18]} 41. Kg1 {[%emt 0:00:13]} Qxa5 {[%emt 0:00:10]} 42. h4 {[%emt 0:03:47]} (42. Rf2 $18) 42... gxh3 {[%emt 0:01:30]} 43. Rd2 {[%emt 0:00:47] Chess con chili.} Qc5+ {[%emt 0:00:28]} 44. Rdf2 {[%emt 0:00:29]} Qxc4 {[%emt 0:01:23]} (44... Nf8 $16 45. Qf6+ (45. Kh2 Ng6 $16) 45... Kg8) 45. Qxc4 {[%emt 0:00:22]} Rxc4 {[%emt 0:00:02]} 46. Rxf7+ $16 {[%emt 0:00:05][%mdl 4096] Endgame KRR-KRN} Kg6 $2 {[%emt 0:00:15]} (46... Kg8 {was called for.} 47. R1f2 Ng5) 47. Kh2 $2 {[%emt 0:00:08]} ({White has to play} 47. Re7 $18) 47... Re4 {[%emt 0:00:17] [#]} (47... Rc5 $1 $14) 48. R7f2 {[%emt 0:01:33]} (48. Kxh3 $2 {perishes.} Ng5+ 49. Kg2 Nxf7 $19) ({White must play} 48. R7f4 $1 $18 {[%cal Rf4e4]} Rxe5 49. Kxh3) 48... Ng5 $14 {[%emt 0:00:34]} 49. Rb1 {[%emt 0:00:28]} Rxe5 {[%emt 0:00:21]} 50. Rxb6 {[%emt 0:00:02]} (50. a4 $1 $14 Ra5 51. Ra2 (51. Rxb6 Rxa4 52. Rb8 Kg7 $11)) 50... Re1 $1 $11 {[%emt 0:00:31]} 51. Rb8 {[%emt 0:00:48]} Kg7 {[%emt 0:01:37] Against Rg8+} 52. a4 {[%emt 0:00:53] And now Rbb2 would win.} Ra1 {[%emt 0:00:10]} 53. Rb5 {[%emt 0:00:57]} Kg6 {[%emt 0:00:12]} 54. a5 {[%emt 0:00:24]} ({White should try} 54. Ra5 $14) 54... Ne4 {[%emt 0:00:21] The position is equal.} 55. Re2 {[%emt 0:00:26]} (55. Rf8 $5 Ra2+ $8 56. Kxh3 Ng5+ 57. Rxg5+ Kxg5 58. Ra8 $11) 55... Ng5 {[%emt 0:00:37] ...Nf3+ would be deadly.} 56. Rf2 {[%emt 0:00:04] Wards off Nf3+} Ne4 {[%emt 0:00:04]} 57. Rf8 {[%emt 0:01:17]} Ra2+ {[%emt 0:00:21]} 58. Kxh3 {[%emt 0:00:11] Hoping for Rg8+.} Ng5+ {[%emt 0:00:14]} 59. Rxg5+ $1 {[%emt 0:00:06]} Kxg5 {[%emt 0:00:05]} 60. Rg8+ {[%emt 0:00:18] White really could win this.   Weighted Error Value: White=0.39/Black=0.34} 1/2-1/2

[Event "6th Tulsi Lal Memorial NTCC 2080"]
[Site "Lalitpur"]
[Date "2024.01.11"]
[Round "6.6"]
[White "Maharjan, Suroj"]
[Black "Chaudhary, Sushil"]
[Result "0-1"]
[ECO "E80"]
[WhiteElo "1832"]
[BlackElo "1769"]
[Annotator "NA RC COMBH"]
[PlyCount "94"]
[EventDate "2024.01.03"]
[EventType "team-tourn"]
[EventCountry "NEP"]
[SourceTitle "playchess.com"]
[Source "ChessBase"]
[SourceQuality "1"]
[TimeControl "5400+30"]

1. d4 {[%emt 0:04:25]} Nf6 {[%emt 0:01:42]} 2. c4 {[%emt 0:00:43]} g6 {[%emt 0:00:14]} 3. Nc3 {[%emt 0:00:12]} Bg7 {[%emt 0:00:54]} 4. e4 {[%emt 0:02:29]} d6 {[%emt 0:00:05]} 5. f3 {[%emt 0:03:23]} a5 {[%emt 0:12:11]} 6. Be3 {[%emt 0:02:17]} Nfd7 {[%emt 0:05:17]} 7. Qd2 {[%emt 0:01:46]} e5 {[%emt 0:04:29]} 8. d5 {[%emt 0:04:29]} Na6 {[%emt 0:04:37]} 9. O-O-O {[%emt 0:01:01]} h5 {[%emt 0:04:13]} 10. h4 {[%emt 0:01:33]} Ndc5 {[%emt 0:00:45]} 11. Kb1 {[%emt 0:04:27]} f5 {[%emt 0:09:42]} 12. Bg5 {[%emt 0:07:30]} Qd7 {[%emt 0:01:31]} (12... Bf6 $11) 13. g3 {[%emt 0:03:11]} Na4 {[%emt 0:02:33]} 14. Nb5 {[%emt 0:10:42]} N6c5 {[%emt 0:03:34]} 15. Qc2 {[%emt 0:09:56]} Qf7 {[%emt 0:03:28]} ({Black should play} 15... O-O $1 $14) 16. Bh3 {[%emt 0:02:39]} ({White should play} 16. b3 $16) 16... fxe4 {[%emt 0:03:32]} 17. Be6 {[%emt 0:00:52] Deflection} ({Don't take} 17. fxe4 Bxh3 18. Nxh3 O-O $16) 17... Nxe6 {[%emt 0:07:35]} 18. dxe6 {[%emt 0:01:31]} (18. Qxa4 O-O $16) 18... Bxe6 {[%emt 0:00:24]} 19. Qxa4 $16 {[%emt 0:01:19]} O-O {[%emt 0:00:51]} 20. fxe4 {[%emt 0:02:04]} Bxc4 {[%emt 0:00:53]} 21. Nc3 {[%emt 0:01:06]} b5 {[%emt 0:02:38]} 22. Qc2 {[%emt 0:02:25]} a4 {[%emt 0:03:15]} 23. Nge2 {[%emt 0:01:47]} b4 {[%emt 0:03:16]} 24. Rdf1 {[%emt 0:04:34]} Qxf1+ {[%emt 0:00:51]} 25. Rxf1 {[%emt 0:00:02]} Rxf1+ {[%emt 0:00:08]} 26. Nc1 {[%emt 0:00:07]} bxc3 {[%emt 0:02:51]} 27. Qxc3 {[%emt 0:00:39]} Be6 {[%emt 0:03:00]} 28. Qc6 {[%emt 0:02:38]} Raf8 {[%emt 0:03:21]} 29. Qxa4 {[%emt 0:01:10]} Kh7 {[%emt 0:00:59]} 30. Qa7 {[%emt 0:02:54]} d5 {[%emt 0:02:15]} 31. b4 {[%emt 0:01:37]} dxe4 {[%emt 0:01:14]} 32. b5 {[%emt 0:02:06]} Bc4 {[%emt 0:02:09]} 33. Qc5 {[%emt 0:01:10]} Bd3+ {[%emt 0:00:12]} 34. Kb2 {[%emt 0:00:04]} R8f2+ {[%emt 0:00:22]} 35. Kb3 {[%emt 0:00:06]} Rc2 $19 {[%emt 0:00:53]} 36. Qe7 {[%emt 0:06:39]} Rcxc1 {[%emt 0:00:31]} 37. Bxc1 {[%emt 0:00:07]} Rxc1 {[%emt 0:00:09]} 38. Qg5 {[%emt 0:00:11]} Rb1+ {[%emt 0:00:20]} 39. Kc3 {[%emt 0:00:23]} Rxb5 {[%emt 0:00:22]} 40. a4 {[%emt 0:00:10]} Rc5+ {[%emt 0:00:25]} 41. Kb4 {[%emt 0:00:17]} Rc4+ {[%emt 0:00:12]} 42. Kb3 {[%emt 0:00:11]} e3 {[%emt 0:01:42]} 43. Qxe3 {[%emt 0:00:24]} e4 {[%emt 0:00:32]} 44. Qf4 {[%emt 0:02:43]} c5 {[%emt 0:00:26]} 45. a5 {[%emt 0:00:50]} Rb4+ {[%emt 0:00:10]} 46. Ka3 {[%emt 0:00:14]} Bb2+ {[%emt 0:00:08]} 47. Ka2 {[%emt 0:00:03]} Bc4+ {[%emt 0:00:10]} 0-1

[Event "6th Tulsi Lal Memorial NTCC 2080"]
[Site "Lalitpur"]
[Date "2024.01.11"]
[Round "6.7"]
[White "Subba, Shem"]
[Black "Thapa, Rishon"]
[Result "0-1"]
[ECO "E63"]
[WhiteElo "1658"]
[BlackElo "1738"]
[Annotator "NA RC COMBH"]
[PlyCount "78"]
[EventDate "2024.01.03"]
[EventType "team-tourn"]
[EventCountry "NEP"]
[SourceTitle "playchess.com"]
[Source "ChessBase"]
[SourceQuality "1"]
[TimeControl "5400+30"]

1. Nf3 {[%emt 0:04:40]} Nf6 {[%emt 0:00:32]} 2. g3 {[%emt 0:02:23]} g6 {[%emt 0:00:22]} 3. c4 {[%emt 0:00:23]} Bg7 {[%emt 0:00:14]} 4. Bg2 {[%emt 0:00:16]} O-O {[%emt 0:00:48]} 5. O-O {[%emt 0:00:13]} d6 {[%emt 0:00:30]} 6. d4 {[%emt 0:00:30]} Nc6 {[%emt 0:04:30]} 7. Nc3 {[%emt 0:00:13]} a6 {[%emt 0:00:14]} 8. b3 {[%emt 0:03:40]} Rb8 {[%emt 0:07:18]} 9. Bb2 {[%emt 0:14:16]} b5 {[%emt 0:05:58]} 10. cxb5 {[%emt 0:00:20]} axb5 {[%emt 0:00:02]} 11. Re1 {[%emt 0:02:52]} Re8 {[%emt 0:16:50]} 12. Rc1 {[%emt 0:03:54]} Bd7 {[%emt 0:07:57]} 13. e3 {[%emt 0:03:29]} e6 {[%emt 0:03:12]} 14. Re2 {[%emt 0:01:04]} Nb4 {[%emt 0:11:17]} 15. a3 {[%emt 0:00:23]} Na6 {[%emt 0:00:06]} 16. Nb1 {[%emt 0:08:15]} Qe7 {[%emt 0:04:25]} 17. Rd2 {[%emt 0:04:58]} Ne4 {[%emt 0:01:21]} 18. Rdc2 {[%emt 0:01:00]} c5 {[%emt 0:05:51]} 19. Ne1 Bc6 {[%emt 0:05:19]} 20. Nd3 {[%emt 0:07:51]} Qb7 {[%emt 0:04:12]} 21. f3 {[%emt 0:40:20]} Ng5 {[%emt 0:03:23]} 22. Kf2 {[%emt 0:00:00]} h5 {[%emt 0:04:33]} 23. dxc5 {[%emt 0:00:00]} Bxb2 {[%emt 0:00:03]} 24. Rxb2 {[%emt 0:00:00]} dxc5 {[%emt 0:04:55]} 25. h4 {[%emt 0:00:00]} Nh7 {[%emt 0:01:21]} 26. Nxc5 {[%emt 0:00:00]} Nxc5 {[%emt 0:00:03]} 27. Rxc5 {[%emt 0:00:00]} Nf6 {[%emt 0:01:46]} 28. Qd6 {[%emt 0:00:00]} Bd5 {[%emt 0:02:43]} 29. Rc7 {[%emt 0:00:00]} Qa8 {[%emt 0:00:56]} 30. e4 {[%emt 0:00:00]} Bxe4 {[%emt 0:01:38]} 31. fxe4 {[%emt 0:00:00]} Rbd8 {[%emt 0:00:46]} 32. Qc6 {[%emt 0:00:00]} Ng4+ {[%emt 0:00:36]} 33. Ke2 {[%emt 0:00:00]} Qa5 {[%emt 0:00:56]} 34. Qb7 {[%emt 0:00:00]} b4 {[%emt 0:01:09]} 35. axb4 {[%emt 0:00:00]} Qe5 {[%emt 0:00:21]} 36. Rc3 {[%emt 0:00:00]} Qd4 {[%emt 0:00:33]} 37. Rd2 {[%emt 0:00:00]} Qf2+ {[%emt 0:00:10]} 38. Kd1 {[%emt 0:00:00]} Rxd2+ {[%emt 0:00:20]} 39. Nxd2 {[%emt 0:00:00]} Rd8 {[%emt 0:00:12]} 0-1

[Event "6th Tulsi Lal Memorial NTCC 2080"]
[Site "Lalitpur"]
[Date "2024.01.11"]
[Round "6.8"]
[White "Demanraura, Ayush"]
[Black "Shah, Anup Jung"]
[Result "1/2-1/2"]
[ECO "D13"]
[WhiteElo "1410"]
[BlackElo "1513"]
[Annotator "NA RC COMBH"]
[PlyCount "53"]
[EventDate "2024.01.03"]
[EventType "team-tourn"]
[EventCountry "NEP"]
[SourceTitle "playchess.com"]
[Source "ChessBase"]
[SourceQuality "1"]
[TimeControl "5400+30"]

1. d4 {[%emt 0:03:32]} d5 {[%emt 0:01:02]} 2. g3 {[%emt 0:00:10]} e6 {[%emt 0:00:48]} 3. Bg2 {[%emt 0:00:31]} Nf6 {[%emt 0:00:37]} 4. Nf3 {[%emt 0:00:35]} c5 {[%emt 0:01:29]} 5. c3 {[%emt 0:01:23]} Nc6 {[%emt 0:01:29]} 6. O-O {[%emt 0:00:14]} cxd4 {[%emt 0:01:47]} 7. cxd4 {[%emt 0:00:36]} Be7 {[%emt 0:00:43]} 8. Nc3 {[%emt 0:01:33]} O-O {[%emt 0:01:06]} 9. Bd2 {[%emt 0:01:07]} a6 {[%emt 0:01:59]} 10. e3 {[%emt 0:01:36]} Re8 {[%emt 0:03:28]} 11. a3 {[%emt 0:02:32]} h6 {[%emt 0:01:53]} 12. Rc1 {[%emt 0:01:39]} Na5 {[%emt 0:01:52]} 13. Ne5 {[%emt 0:04:09]} Nd7 {[%emt 0:02:46]} 14. Nxd7 {[%emt 0:06:56]} Bxd7 {[%emt 0:00:38]} 15. e4 {[%emt 0:00:04]} Bc6 {[%emt 0:00:20]} 16. a4 {[%emt 0:06:56]} Nc4 {[%emt 0:03:18]} 17. b3 {[%emt 0:02:22]} Nxd2 {[%emt 0:00:56]} 18. Qxd2 {[%emt 0:00:01]} Bb4 {[%emt 0:02:03]} 19. Qd3 {[%emt 0:03:34]} Bxc3 {[%emt 0:06:05]} 20. Rxc3 {[%emt 0:00:22]} Rc8 {[%emt 0:02:59]} 21. Rfc1 {[%emt 0:02:42]} dxe4 {[%emt 0:03:25]} 22. Bxe4 {[%emt 0:00:16]} Bxe4 {[%emt 0:01:48]} 23. Qxe4 {[%emt 0:00:09]} Rxc3 {[%emt 0:00:31]} 24. Rxc3 {[%emt 0:00:01]} Qd6 {[%emt 0:09:56]} 25. Re3 {[%emt 0:06:04]} b5 {[%emt 0:07:06]} 26. axb5 {[%emt 0:03:01]} axb5 {[%emt 0:00:23]} 27. Qe5 {[%emt 0:51:55]} 1/2-1/2